[Event "Polish Youth B18 Championship 2023"]
[Site "Jastrzebia Gora"]
[Date "2023.03.15"]
[Round "5.15"]
[White "Krasniewski, Szymon"]
[Black "Syrkiewicz, Michal"]
[Result "1-0"]
[ECO "A84"]
[WhiteElo "1771"]
[BlackElo "2000"]
[Annotator "TA"]
[PlyCount "119"]
[EventDate "2023.03.11"]
[EventType "swiss"]
[EventCountry "POL"]
[SourceTitle "playchess.com"]
[Source "ChessBase"]
[SourceQuality "1"]
[TimeControl "40/5400+30:1800+30"]

{[%evp 20,119,10,4,87,48,88,82,99,83,89,51,119,79,93,92,174,157,255,162,150,121,126,118,126,118,110,117,110,117,112,104,128,127,142,139,141,142,149,146,153,131,175,147,210,210,202,192,212,179,186,182,187,152,177,157,231,213,264,232,287,166,227,204,261,226,231,0,266,269,319,310,387,347,403,401,409,401,508,482,394,364,1804,837,725,0,1912,1742,1204,1179,3631,1043,29982,29982,29989,29988,29990,29990,29990,29991,29994,29993]} 1. d4 {[%emt 0:00:43]} f5 {[%emt 0:00:11]} 2. c4 {[%emt 0:00:50]} d6 {[%emt 0:01:14]} 3. Nf3 {[%emt 0:00:11]} Nf6 {[%emt 0:00:07]} 4. Nc3 {[%emt 0:00:03]} g6 {[%emt 0:00:15]} 5. g3 {[%emt 0:00:03]} Bg7 {[%emt 0:00:05]} 6. Bg2 {[%emt 0:00:04]} O-O {[%emt 0:00:38]} 7. O-O {[%emt 0:00:07]} Qe8 {[%emt 0:00:06]} 8. Re1 {[%emt 0:00:56]} Qf7 {[%emt 0:00:08]} 9. Qd3 {[%emt 0:06:11]} h6 {[%emt 0:08:47]} 10. b3 {[%emt 0:19:59]} Nc6 {[%emt 0:09:24]} 11. Ba3 {[%emt 0:16:07] [#]} Rd8 $146 {[%emt 0:17:39] A87: Dutch Defence: Leningrad System: 5 Nf3.} (11... Ne4 $11 {keeps the balance.}) ({Predecessor:} 11... Ne4 12. Rad1 e5 13. dxe5 Nxc3 14. Qxc3 Re8 15. Nd4 Nxd4 16. Qxd4 dxe5 17. Qd2 e4 18. Bb2 b6 19. Bxg7 Kxg7 {½-½ Umansky,M (2527)-Kruse,H (2522) CFriend AS CFC Simul 002 email 2004}) 12. Rad1 {[%emt 0:17:17]} Bd7 {[%emt 0:15:21]} 13. d5 {[%emt 0:05:22]} Ne5 {[%emt 0:03:54] White is better.} 14. Qc2 {[%emt 0:03:32]} g5 {[%emt 0:05:42]} 15. Nd4 {[%emt 0:10:44]} Qg6 {[%emt 0:06:39]} ({Black should try} 15... f4 $14) 16. e3 {[%emt 0:02:24] And now f4 would win.} g4 {[%emt 0:09:07]} 17. Nce2 {[%emt 0:01:08][%cal Bc3e2,Be2f4,Bf4e6][%mdl 32]} Rdc8 {[%emt 0:03:13]} (17... Ne4 $16 {was necessary.}) 18. Nf4 $18 {[%emt 0:00:58]} Qg5 {[%emt 0:00:44]} (18... Qf7 $16 19. Nxf5 Bxf5 20. Qxf5 Nh7 21. Qxf7+ Kxf7) 19. Nfe6 {[%emt 0:04:57]} Bxe6 {[%emt 0:00:28]} 20. dxe6 {[%emt 0:01:18]} Ne4 {[%emt 0:00:15] [#]} 21. Nxf5 $1 {[%emt 0:01:28][%mdl 512]} Qxf5 {[%emt 0:03:11]} 22. Qxe4 {[%emt 0:00:19]} ({Of course not} 22. Bxe4 $6 Nf3+ 23. Kf1 Nxe1 24. Rxe1 Qa5 $11) 22... Qxe4 {[%emt 0:01:26]} 23. Bxe4 {[%emt 0:00:02]} Nf3+ {[%emt 0:00:09]} 24. Bxf3 {[%emt 0:00:06]} gxf3 {[%emt 0:00:01]} 25. e4 {[%emt 0:01:50]} Rf8 {[%emt 0:02:33]} 26. Rd3 {[%emt 0:00:31]} Rf6 {[%emt 0:03:05]} 27. Bb2 {[%emt 0:00:21] White is more active.} Rxe6 {[%emt 0:00:06]} 28. Bxg7 {[%emt 0:00:04]} Kxg7 {[%emt 0:00:02]} 29. Rxf3 $16 {[%emt 0:00:05][%mdl 4096] Endgame KRR-KRR} c6 {[%emt 0:01:17]} 30. Rfe3 {[%emt 0:00:33]} Rb8 {[%emt 0:01:03]} 31. Rc1 {[%emt 0:01:07]} c5 {[%emt 0:01:37]} (31... Re5 $16 32. f4 Rh5) 32. f4 $18 {[%emt 0:03:58]} b5 {[%emt 0:00:46]} 33. Kf2 {[%emt 0:00:35]} Rb6 {[%emt 0:00:19]} 34. cxb5 {[%emt 0:00:28]} Rxb5 {[%emt 0:00:03]} 35. Rc4 {[%emt 0:00:38]} Ra5 {[%emt 0:00:29]} 36. Rc2 {[%emt 0:01:05]} Kf7 {[%emt 0:00:56]} 37. Kf3 {[%emt 0:00:18]} Rg6 {[%emt 0:00:23]} (37... Ra3 $16 {keeps fighting.} 38. Ree2 a5) 38. g4 {[%emt 0:00:36]} Rg8 {[%emt 0:00:28]} 39. h4 {[%emt 0:00:41]} Rh8 {[%emt 0:00:27]} 40. Rd3 {[%emt 0:00:00]} (40. e5 $142) 40... Ra6 {[%emt 0:00:00]} (40... Ra3 {might work better.} 41. e5 dxe5 42. Rxc5 (42. fxe5 c4 $16) 42... exf4) 41. Kg3 {[%emt 0:09:17]} Kf6 {[%emt 0:03:47]} 42. Rcd2 {[%emt 0:02:00]} Rc6 {[%emt 0:02:05]} 43. Rc2 {[%emt 0:04:24]} Ra6 $1 {[%emt 0:00:38]} 44. Rd5 {[%emt 0:05:36]} Rb8 {[%emt 0:03:46]} 45. g5+ {[%emt 0:00:38]} hxg5 {[%emt 0:00:05]} 46. hxg5+ {[%emt 0:00:05]} ({Not} 46. Rxg5 Ra3 47. Kg4 c4 48. bxc4 Re3 $18) 46... Kg6 {[%emt 0:02:24]} 47. Kg4 {[%emt 0:03:50]} Rh8 {[%emt 0:01:25]} 48. Rdd2 {[%emt 0:02:18]} Rh1 {[%emt 0:00:46]} 49. Rh2 {[%emt 0:01:13] Repels Rc6} Rg1+ {[%emt 0:00:03]} 50. Rcg2 {[%emt 0:00:26]} Ra1 {[%emt 0:00:42]} (50... Rxg2+ 51. Rxg2 Kg7) 51. Rh6+ {[%emt 0:01:40]} (51. f5+ $142 Kg7 52. g6) 51... Kg7 {[%emt 0:00:21]} 52. Rhh2 {[%emt 0:00:34]} (52. Rgh2 $142 R1xa2 53. Rh7+ {[%mdl 64] Skewer} Kg8 54. Rh8+ Kf7 55. R2h7+ Ke6 56. Re8) 52... Kg6 $1 {[%emt 0:00:13]} 53. f5+ {[%emt 0:00:35]} Kg7 {[%emt 0:00:15]} 54. g6 {[%emt 0:02:44] Threatening mate with Rh7+.} Kf6 {[%emt 0:01:14]} 55. Kh5 {[%emt 0:00:26]} (55. e5+ $142 dxe5 56. Rh7) 55... Kg7 {[%emt 0:00:40]} 56. Kg5 {[%emt 0:00:07] White mates.} d5 {[%emt 0:00:11]} 57. e5 {[%emt 0:00:34][%cal Be4e5,Be5f6,Bf6f7][%mdl 32]} c4 {[%emt 0:00:15] [#]} 58. f6+ $1 {[%emt 0:00:43][%mdl 512]} exf6+ {[%emt 0:00:31]} 59. exf6+ {[%emt 0:00:02]} Kg8 {[%emt 0:00:05]} 60. f7+ {[%emt 0:00:11] Weighted Error Value: White=0.32/Black=0.45} 1-0

[Event "Polish Youth B18 Championship 2023"]
[Site "Jastrzebia Gora"]
[Date "2023.03.15"]
[Round "5.16"]
[White "Kitewski, Bartosz"]
[Black "Paprocki, Antoni"]
[Result "1/2-1/2"]
[ECO "B18"]
[WhiteElo "1968"]
[BlackElo "2255"]
[Annotator "TA"]
[PlyCount "166"]
[EventDate "2023.03.11"]
[EventType "swiss"]
[EventCountry "POL"]
[SourceTitle "playchess.com"]
[Source "ChessBase"]
[SourceQuality "1"]
[TimeControl "40/5400+30:1800+30"]

{[%evp 19,165,-10,-8,-15,-12,-22,12,-12,-16,-19,-23,-23,-6,-11,-14,-16,-17,-6,-3,-19,0,-21,0,0,0,0,0,0,0,-6,-3,-2,-8,-8,-14,-4,-5,-3,-9,-10,-10,-16,-8,-8,0,0,0,0,0,0,0,0,0,0,0,0,0,0,0,0,0,0,0,0,0,0,0,0,0,-33,0,0,0,0,0,0,0,0,0,0,0,0,0,0,0,-120,-120,-120,-120,-120,-120,-120,-120,-1239,-120,-120,-120,-144,-144,-144,-143,-143,-120,-128,-114,-160,-148,-135,-75,-96,-23,-12,0,0,0,0,0,0,0,0,0,0,0,0,0,0,0,0,0,0,0,0,0,0,0,0,0,0,0,0,0,0,0,0,0,0,0,0]} 1. e4 {[%emt 0:00:05]} c6 {[%emt 0:01:41]} 2. d4 {[%emt 0:00:13]} d5 {[%emt 0:00:04]} 3. Nc3 {[%emt 0:00:06]} dxe4 {[%emt 0:00:06]} 4. Nxe4 {[%emt 0:00:04]} Bf5 {[%emt 0:00:07]} 5. Ng3 {[%emt 0:00:05]} Bg6 {[%emt 0:00:04]} 6. h4 {[%emt 0:00:07]} h6 {[%emt 0:00:04]} 7. Nh3 {[%emt 0:00:08]} e6 {[%emt 0:01:55]} 8. Nf4 {[%emt 0:02:05]} Bh7 {[%emt 0:00:21]} 9. Bc4 {[%emt 0:00:50]} Nf6 {[%emt 0:02:27]} 10. c3 {[%emt 0:04:14]} Bd6 {[%emt 0:01:17]} 11. O-O {[%emt 0:02:09] B18: Classical Caro-Kann: 4...Bf5 sidelines.} O-O {[%emt 0:02:05]} 12. Re1 {[%emt 0:05:10]} Kh8 {[%emt 0:13:34]} 13. Qf3 {[%emt 0:21:56]} Nbd7 {[%emt 0:00:56] [#]} 14. Nd3 $146 {[%emt 0:08:47]} (14. Bd3 {is interesting.} e5 15. Nfh5 Bxd3 16. Qxd3 Nxh5 17. Nxh5 Qxh4 18. Qf5) ({Predecessor:} 14. Bd3 Bxd3 15. Nxd3 Qc7 16. Ne4 Nxe4 17. Rxe4 c5 18. dxc5 Nxc5 19. Nxc5 Bxc5 20. Bf4 {1-0 Sevian,S (2660)-Kobalia,M (2614) PNWCC Online blitz JP 9th 2020 (8)}) 14... b5 {[%emt 0:08:11]} 15. Bb3 {[%emt 0:00:11]} c5 {[%emt 0:00:30]} 16. Nxc5 {[%emt 0:06:56]} Nxc5 {[%emt 0:00:33]} 17. dxc5 {[%emt 0:00:04]} Bxc5 {[%emt 0:00:06]} 18. Nh5 {[%emt 0:03:53]} Nxh5 {[%emt 0:05:05]} 19. Qxh5 {[%emt 0:00:22]} Rc8 {[%emt 0:02:43]} 20. Bf4 {[%emt 0:03:58]} Bg6 {[%emt 0:09:05]} 21. Qg4 {[%emt 0:00:41]} Bf5 {[%emt 0:00:27]} 22. Qg3 {[%emt 0:00:55]} Qb6 23. Rad1 {[%emt 0:03:17]} Rfd8 {[%emt 0:01:53]} 24. a3 {[%emt 0:17:52]} a5 {[%emt 0:07:05]} 25. Be5 {[%emt 0:01:57][%csl Ge5][%cal Rg3g7]} f6 {[%emt 0:00:34]} 26. Rxd8+ {[%emt 0:00:28]} Rxd8 {[%emt 0:05:57]} 27. Bc7 {[%emt 0:01:18] [#]} Bxf2+ {[%emt 0:00:07][%mdl 64] Deflection} 28. Qxf2 {[%emt 0:00:04]} Qxc7 {[%emt 0:00:05]} 29. Bxe6 {[%emt 0:00:05]} Bxe6 {[%emt 0:00:14]} 30. Rxe6 $11 {[%emt 0:00:04][%mdl 4096] Endgame KQR-KQR} Rd1+ {[%emt 0:02:25]} 31. Re1 {[%emt 0:00:07]} Qd6 {[%emt 0:00:13]} 32. Rxd1 {[%emt 0:06:27]} Qxd1+ {[%emt 0:00:11] KQ-KQ} 33. Kh2 {[%emt 0:00:21]} Qd5 {[%emt 0:00:15]} 34. g3 {[%emt 0:02:27]} a4 {[%emt 0:00:14]} 35. Qe3 {[%emt 0:00:25]} h5 {[%emt 0:01:16]} 36. Qe2 {[%emt 0:07:18]} Kh7 {[%emt 0:08:36]} 37. Qe3 {[%emt 0:00:15]} Qe5 {[%emt 0:02:28]} 38. Qd3+ {[%emt 0:01:49]} Kg8 {[%emt 0:00:34]} 39. Kg2 {[%emt 0:00:19]} Kf7 {[%emt 0:01:53]} 40. Qd7+ {[%emt 0:00:00]} Kg6 {[%emt 0:00:00]} 41. Qd3+ {[%emt 0:00:57]} Qf5 {[%emt 0:01:02]} 42. Qe2 {[%emt 0:00:42]} Qd5+ {[%emt 0:01:20]} 43. Kh2 {[%emt 0:00:36]} Kf7 {[%emt 0:00:12]} 44. Qe3 {[%emt 0:03:12]} Qd1 {[%emt 0:02:52]} 45. Qa7+ {[%emt 0:06:20]} Kg6 {[%emt 0:00:18]} 46. Qe3 {[%emt 0:00:05]} Qc2+ {[%emt 0:04:21]} 47. Kh3 {[%emt 0:00:15]} Qb1 {[%emt 0:00:09][%cal Rb1h1]} 48. Qe8+ {[%emt 0:02:52]} Kh6 {[%emt 0:00:39][%cal Rb1h1]} 49. Qh8+ {[%emt 0:01:50]} Qh7 {[%emt 0:01:10]} 50. Qc8 {[%emt 0:01:29]} Qe4 {[%emt 0:00:49][%cal Re4h1]} 51. Kh2 {[%emt 0:00:52] Prevents Qh1+.} Kg6 {[%emt 0:07:42]} 52. Qd7 {[%emt 0:00:45] [#]} (52. Qd8 $11) 52... Qc2+ $1 $17 {[%emt 0:00:14]} 53. Kg1 {[%emt 0:02:02]} Qc1+ {[%emt 0:00:12]} (53... Qxb2 $6 54. Qe8+ Kh7 55. Qxh5+ Kg8 56. Qe8+ Kh7 57. Qh5+ Kg8 58. Qe8+ Kh7 59. Qh5+ $11) 54. Kg2 {[%emt 0:00:06]} Qxb2+ {[%emt 0:00:04]} 55. Kh3 {[%emt 0:00:07]} Qe2 {[%emt 0:02:05] Prevents Qe8+.} (55... Qxc3 $6 56. Qe8+ Kh7 57. Qxh5+ Kg8 58. Qe8+ Kh7 59. Qh5+ Kg8 60. Qe8+ Kh7 61. Qh5+ $11) 56. Qc7 $2 {[%emt 0:00:49][%mdl 8192]} (56. Qd8 $17) 56... Qc4 $2 {[%emt 0:05:29]} (56... Qe4 $19 {[%cal Re4h1] has better winning chances.} 57. Kh2 Qc2+ 58. Kh3 b4 59. axb4 Qe4) 57. Qe7 {[%emt 0:02:29]} Kh7 {[%emt 0:03:07]} (57... Qxc3 $6 58. Qe8+ Kh7 59. Qxh5+ Kg8 60. Qe8+ Kh7 61. Qh5+ Kg8 62. Qe8+ Kh7 63. Qh5+ $11) 58. Qe8 Qf1+ {[%emt 0:02:40]} ({Don't play} 58... Qxc3 $6 59. Qxh5+ Kg8 60. Qe8+ Kh7 61. Qh5+ Kg8 62. Qe8+ Kh7 63. Qh5+ $11) 59. Kh2 {[%emt 0:01:00]} Qf2+ {[%emt 0:00:02]} 60. Kh3 {[%emt 0:00:07]} Qf3 {[%emt 0:02:20][%cal Rf3h1]} 61. Kh2 {[%emt 0:00:23] Repels Qh1+} Qd5 {[%emt 0:00:12]} ({Reject} 61... Qxc3 $6 62. Qxh5+ Kg8 63. Qe8+ Kh7 64. Qh5+ Kg8 65. Qe8+ Kh7 66. Qh5+ $11) 62. Qc8 {[%emt 0:01:24]} (62. Qe2 $142) 62... Qe5 {[%emt 0:03:38] ...Qe2+ is the strong threat.} 63. Qd7 {[%emt 0:00:22]} f5 {[%emt 0:07:24]} ({Not} 63... Qxc3 64. Qxb5 Qc2+ 65. Kh3 $17) (63... Kh6 $142 64. Qc8 Qe4) 64. Qd2 {[%emt 0:04:22]} Qe4 {[%emt 0:00:50]} (64... Qc5 $17 65. Qd7 f4 66. Qd3+ g6 67. Qd7+ Kg8 68. Qe6+ Kg7 69. Qd7+ Kf6 70. Qd8+ Qe7 71. Qb6+ Qe6 72. Qd8+ Qe7 73. Qb6+ Qe6 74. Qd8+ Qe7) 65. Qd1 $1 $11 {[%emt 0:01:48]} Qg4 {[%emt 0:05:14] The position is equal.} 66. Qd3 {[%emt 0:00:20]} Kh6 {[%emt 0:01:56] And now ...f4 would win.} 67. Qxb5 {[%emt 0:02:51]} f4 {[%emt 0:00:23]} 68. Qd3 {[%emt 0:01:18] Active counter play!} fxg3+ {[%emt 0:05:26]} 69. Qxg3 {[%emt 0:01:21]} Qxg3+ {[%emt 0:00:26]} 70. Kxg3 {[%emt 0:00:09] K3P-K3P} g5 $1 {[%emt 0:00:03]} 71. c4 {[%emt 0:00:36][%cal Bc3c4,Bc4c5][%mdl 32]} Kg6 {[%emt 0:00:43] ( -> ...g4)} 72. c5 {[%emt 0:00:27] White wants to mate with c6.} gxh4+ $1 {[%emt 0:00:11]} 73. Kxh4 {[%emt 0:00:04] Intending c6 and mate.} Kf6 {[%emt 0:00:05]} 74. Kxh5 {[%emt 0:01:26] KPP-KP} Ke6 {[%emt 0:00:04]} 75. Kg4 {[%emt 0:00:16]} Kd5 {[%emt 0:00:04]} 76. Kf4 {[%emt 0:00:05]} Kxc5 {[%emt 0:00:06] KP-KP} 77. Ke3 {[%emt 0:00:05]} Kc4 {[%emt 0:00:05]} 78. Kd2 {[%emt 0:00:03]} Kb3 {[%emt 0:00:05]} 79. Kc1 {[%emt 0:00:03]} Kxa3 {[%emt 0:00:07]} 80. Kb1 {[%emt 0:00:03]} Kb3 {[%emt 0:00:06]} 81. Ka1 {[%emt 0:00:03]} a3 {[%emt 0:00:04][%cal Ba4a3,Ba3a2][%mdl 32]} 82. Kb1 {[%emt 0:00:04]} a2+ {[%emt 0:00:03]} 83. Ka1 {[%emt 0:00:02]} Ka3 {[%emt 0:00:04] Black had all chances to win.   Weighted Error Value: White=0.24 (precise) /Black=0.20 (precise)} 1/2-1/2

[Event "Polish Youth B18 Championship 2023"]
[Site "Jastrzebia Gora"]
[Date "2023.03.15"]
[Round "5.17"]
[White "Kozlowski, Franciszek"]
[Black "Kotowicz, Kamil"]
[Result "1/2-1/2"]
[ECO "A45"]
[WhiteElo "1829"]
[BlackElo "1828"]
[Annotator "NA RC COMBH"]
[PlyCount "68"]
[EventDate "2023.03.11"]
[EventType "swiss"]
[EventCountry "POL"]
[SourceTitle "playchess.com"]
[Source "ChessBase"]
[SourceQuality "1"]
[TimeControl "40/5400+30:1800+30"]

1. d4 {[%emt 0:00:03]} Nf6 {[%emt 0:00:38]} 2. Bf4 {[%emt 0:00:10]} c5 {[%emt 0:00:44]} 3. e3 {[%emt 0:01:25]} d5 {[%emt 0:00:42]} 4. c3 {[%emt 0:00:06]} Nc6 {[%emt 0:00:10]} 5. Nd2 {[%emt 0:01:57]} e6 {[%emt 0:00:50]} 6. Ngf3 {[%emt 0:00:42]} Be7 {[%emt 0:00:08]} 7. h3 {[%emt 0:03:20]} Bd6 {[%emt 0:00:05]} 8. Bxd6 {[%emt 0:04:28] The old main line.} Qxd6 {[%emt 0:00:08]} 9. Bb5 {[%emt 0:00:48]} O-O {[%emt 0:01:13]} 10. O-O {[%emt 0:01:05]} cxd4 {[%emt 0:02:32]} 11. exd4 {[%emt 0:00:21]} a6 {[%emt 0:00:15]} 12. Bd3 {[%emt 0:00:22]} Bd7 {[%emt 0:01:42]} 13. Re1 {[%emt 0:00:17]} Ne7 {[%emt 0:01:27]} 14. Ne5 {[%emt 0:02:15]} Ng6 {[%emt 0:00:57]} 15. Nxg6 {[%emt 0:01:16] [#]} (15. a4 $142) 15... hxg6 $146 {[%emt 0:00:15]} ({Predecessor:} 15... fxg6 16. Nf3 Nh5 17. Ne5 Nf4 18. Qd2 Rf6 19. Ng4 Rff8 20. Ne5 g5 21. Re3 Be8 22. Kh2 Bg6 23. Bxg6 Nxg6 {½-½ Sukhareva,E (2125)-Charochkina,D (2344) RUS-chT blitz (Women) 2018 (1.2)}) 16. Nf3 {[%emt 0:00:04]} b5 {[%emt 0:01:26]} 17. Qd2 {[%emt 0:01:37]} Rfb8 {[%emt 0:00:40]} 18. a3 {[%emt 0:00:40]} Be8 {[%emt 0:01:08]} (18... a5 $11) 19. Ne5 {[%emt 0:14:59]} Nd7 {[%emt 0:00:57]} 20. Ng4 {[%emt 0:00:21]} a5 {[%emt 0:01:32]} 21. Qe2 {[%emt 0:00:23]} Nb6 {[%emt 0:03:26]} 22. h4 {[%emt 0:06:33]} b4 {[%emt 0:03:01]} (22... Qe7 $11) 23. axb4 {[%emt 0:01:19]} axb4 {[%emt 0:00:07]} 24. Ne5 {[%emt 0:09:59]} bxc3 {[%emt 0:02:58]} 25. bxc3 {[%emt 0:01:13]} Rxa1 {[%emt 0:07:34]} 26. Rxa1 {[%emt 0:00:07]} Qc7 {[%emt 0:00:22]} 27. Rc1 {[%emt 0:03:37]} Qe7 {[%emt 0:03:09]} 28. Rb1 {[%emt 0:02:26]} Nd7 {[%emt 0:12:21]} (28... Qxh4 $5 29. Nxg6 Qd8 $11) 29. Rxb8 {[%emt 0:03:05]} Nxb8 {[%emt 0:00:05]} 30. h5 {[%emt 0:04:25]} gxh5 {[%emt 0:01:18]} 31. Qxh5 {[%emt 0:00:08]} g6 {[%emt 0:01:44]} 32. Qe2 {[%emt 0:04:45]} Nd7 {[%emt 0:03:16]} 33. Ng4 $11 {[%emt 0:01:31]} Nf6 34. Ne5 {[%emt 0:04:27]} Kg7 {[%emt 0:07:12]} 1/2-1/2

[Event "Polish Youth B18 Championship 2023"]
[Site "Jastrzebia Gora"]
[Date "2023.03.15"]
[Round "5.18"]
[White "Malik, Maciej"]
[Black "Kossowski, Pawel"]
[Result "1/2-1/2"]
[ECO "C45"]
[WhiteElo "2163"]
[BlackElo "1766"]
[Annotator "TA"]
[PlyCount "70"]
[EventDate "2023.03.11"]
[EventType "swiss"]
[EventCountry "POL"]
[SourceTitle "playchess.com"]
[Source "ChessBase"]
[SourceQuality "1"]
[TimeControl "40/5400+30:1800+30"]

{[%evp 11,70,41,45,18,25,-34,-34,-27,-11,-10,-22,-39,-39,-39,-35,-41,-28,-69,-47,-54,-62,-95,-92,-101,-86,-86,-73,-82,-77,-62,-74,-75,-64,-92,-76,-74,-68,-106,-106,-115,-75,-94,-85,-102,-90,-102,-22,-28,-1,-1,-1,-1,-1,-1,0,0,0,0,0,0,0]} 1. e4 {[%emt 0:01:44]} e5 {[%emt 0:00:06]} 2. Nf3 {[%emt 0:00:05]} Nc6 {[%emt 0:00:05]} 3. d4 {[%emt 0:00:09]} exd4 {[%emt 0:00:24]} 4. Nxd4 {[%emt 0:00:08]} Bc5 5. Nb3 {[%emt 0:00:17]} Bb4+ {[%emt 0:00:21]} 6. c3 {[%emt 0:01:57]} Be7 {[%emt 0:00:05]} 7. Be2 {[%emt 0:17:38] C45: Scotch Game.} Nf6 {[%emt 0:02:58]} 8. Qc2 {[%emt 0:00:59]} (8. N1d2 $11) 8... d5 $15 {[%emt 0:02:10]} 9. N1d2 {[%emt 0:04:14] [#] Black is slightly better.} O-O $146 {[%emt 0:09:20]} (9... a5 $5 {[%cal Ra5a4]}) ({Predecessor:} 9... Be6 10. O-O Qd7 11. Bb5 dxe4 12. Bxc6 Qxc6 13. Nd4 Qd5 14. Nxe6 Qxe6 15. Qa4+ c6 {1-0 Pyatnitsyn,M (1803)-Shilnikov,I (1979) Nizhnij Novgorod Dubinin Memorial 15th 2008}) 10. O-O {[%emt 0:03:32]} Re8 {[%emt 0:03:19]} 11. Bf3 {[%emt 0:08:53]} Ne5 {[%emt 0:04:04] aiming for ...Nxf3+.} 12. exd5 {[%emt 0:01:55]} Nxf3+ {[%emt 0:00:21]} 13. Nxf3 {[%emt 0:00:09]} Qxd5 {[%emt 0:00:28]} 14. Qd2 {[%emt 0:03:33] White is weak on the light squares} Bg4 {[%emt 0:04:34]} 15. Qxd5 {[%emt 0:12:25]} Nxd5 {[%emt 0:00:08]} 16. Nfd4 {[%emt 0:07:37]} c5 {[%emt 0:11:52]} 17. Nc2 {[%emt 0:02:57]} b6 {[%emt 0:08:50]} 18. Ne3 {[%emt 0:00:47]} Nxe3 {[%emt 0:01:06]} 19. Bxe3 {[%emt 0:00:07]} a5 {[%emt 0:06:41]} 20. Nd2 {[%emt 0:09:54]} Be6 {[%emt 0:02:06] Dodges Nc4} 21. Rfd1 {[%emt 0:02:09]} Red8 {[%emt 0:01:26]} 22. Kf1 {[%emt 0:03:44]} Rd3 {[%emt 0:02:01]} 23. Ke2 {[%emt 0:02:20]} Rad8 {[%emt 0:00:24]} 24. h3 {[%emt 0:02:26]} a4 {[%emt 0:01:43]} 25. Rdc1 Bc8 {[%emt 0:02:41]} 26. b3 {[%emt 0:02:59]} Ba6 {[%emt 0:02:29]} 27. Nc4 {[%emt 0:04:37][%cal Oe3d4] [#]} Bf6 $1 {[%emt 0:07:43] Wards off Bd4} 28. Rd1 {[%emt 0:01:51]} axb3 {[%emt 0:03:37]} (28... Bxc3 $2 29. Rxd3 Rxd3 30. Rc1 Rxe3+ 31. fxe3 (31. Kxe3 Bd4+ 32. Kf4 axb3 $16) 31... axb3 32. axb3 $18) (28... Rxc3 $17 {Strongly threatening ...Rxd1.} 29. Rxd8+ Bxd8) 29. axb3 $11 {[%emt 0:00:13]} Bxc4 {[%emt 0:00:40]} (29... Rxc3 $2 30. Rxd8+ Bxd8 31. Rxa6 $18) 30. bxc4 {[%emt 0:00:03] The position is equal.} Rxd1 {[%emt 0:00:12]} (30... Rxc3 $2 31. Rxd8+ Bxd8 32. Ra8 $18) 31. Rxd1 {[%emt 0:00:03]} Rxd1 {[%emt 0:00:10]} 32. Kxd1 {[%emt 0:00:02]} Bxc3 $17 {[%emt 0:00:35] KB-KB} 33. Kc2 {[%emt 0:00:01]} Be5 {[%emt 0:01:28]} 34. Kb3 {[%emt 0:03:12]} Kf8 {[%emt 0:01:43]} 35. Ka4 {[%emt 0:00:07]} Ke8 {[%emt 0:09:34] Weighted Error Value: White=0.14 (very precise) /Black=0.13 (very precise)} 1/2-1/2

[Event "Polish Youth B18 Championship 2023"]
[Site "Jastrzebia Gora"]
[Date "2023.03.15"]
[Round "5.19"]
[White "Smuda, Tomasz"]
[Black "Jedraszek, Pawel"]
[Result "1/2-1/2"]
[ECO "E92"]
[WhiteElo "1654"]
[BlackElo "1944"]
[Annotator "TA"]
[PlyCount "83"]
[EventDate "2023.03.11"]
[EventType "swiss"]
[EventCountry "POL"]
[SourceTitle "playchess.com"]
[Source "ChessBase"]
[SourceQuality "1"]
[TimeControl "40/5400+30:1800+30"]

{[%evp 26,83,24,20,47,-9,-16,-25,0,-4,33,-7,20,20,50,58,56,54,85,85,74,24,49,0,43,11,8,5,5,5,10,11,22,0,0,0,0,0,0,-2,-9,-5,0,-8,0,0,0,0,0,0,0,0,0,0,0,0,0,0,0,0]} 1. Nf3 {[%emt 0:00:14]} Nf6 {[%emt 0:00:26]} 2. c4 {[%emt 0:00:16]} g6 {[%emt 0:00:21]} 3. Nc3 {[%emt 0:00:26]} Bg7 {[%emt 0:00:28]} 4. e4 {[%emt 0:00:32]} d6 {[%emt 0:00:07]} 5. d4 {[%emt 0:00:18]} O-O {[%emt 0:00:27]} 6. Be2 {[%emt 0:00:15]} e5 {[%emt 0:00:40]} 7. dxe5 {[%emt 0:00:06]} dxe5 {[%emt 0:00:06]} 8. Qxd8 {[%emt 0:00:03]} Rxd8 {[%emt 0:00:12]} 9. Bg5 {[%emt 0:00:01]} Re8 {[%emt 0:08:48]} 10. Nd5 {[%emt 0:00:22]} Nxd5 {[%emt 0:00:18]} 11. cxd5 {[%emt 0:00:03]} c6 {[%emt 0:01:50]} 12. Bc4 {[%emt 0:00:04]} cxd5 {[%emt 0:05:39]} 13. Bxd5 {[%emt 0:00:06]} Nc6 {[%emt 0:01:36]} 14. O-O-O $1 {[%emt 0:00:32] The main line 14.0-0-0 scores better than 14.Bxc6.} a5 {[%emt 0:21:59] [#] E92: King's Indian: Classical: 6 Be2 e5: 7 dxe5, 7 Be3 and Petrosian System without 7...Nbd7.} 15. Bxc6 $146 {[%emt 0:12:39]} (15. Kb1 $14) ({Predecessor:} 15. Kb1 a4 16. Be3 h6 17. Rd2 Rb8 18. a3 Ne7 19. Ba2 b5 20. Bc5 Bb7 21. Re1 Ba8 22. Bb4 {1-0 Kovacs,A (2264)-Jovanovic,B (2211) LSS SM-2008-0-00026}) 15... bxc6 $11 {[%emt 0:00:04]} 16. Rd6 {[%emt 0:10:42][%cal Oh1d1]} Be6 {[%emt 0:02:12] Black has an edge.} 17. Kb1 {[%emt 0:00:36]} Rec8 {[%emt 0:06:59] Black is weak on the dark squares} 18. Rhd1 {[%emt 0:02:10]} h6 {[%emt 0:03:53]} 19. Rd8+ {[%emt 0:07:03]} Kh7 {[%emt 0:00:08]} 20. Rxc8 {[%emt 0:00:37]} Rxc8 {[%emt 0:00:08]} 21. Be3 {[%emt 0:02:24]} a4 {[%emt 0:09:05]} 22. Rc1 {[%emt 0:02:26] White is more active.} f5 {[%emt 0:07:29] [#]} 23. Nd2 {[%emt 0:02:10]} ({Better is} 23. Rc5 $1 $16) 23... Bf8 {[%emt 0:05:53]} 24. f3 {[%emt 0:08:02]} (24. Nc4 $14 {deserves consideration.}) 24... Bd6 {[%emt 0:06:26]} (24... Rd8 $5 {[%cal Rf5f4]} 25. Nc4 (25. Rxc6 f4 $15) 25... Bg7 $11) 25. Nc4 {[%emt 0:05:15]} (25. Bc5 $5 {[%cal Rc5d6]} Bb8 26. Nc4 $11) 25... Bc7 {[%emt 0:00:14] The position is equal.} 26. b4 {[%emt 0:03:58]} axb3 {[%emt 0:01:14]} 27. axb3 {[%emt 0:01:19]} Kg7 {[%emt 0:01:37]} 28. Kb2 {[%emt 0:01:05]} Kf6 {[%emt 0:02:16]} 29. Kc3 {[%emt 0:04:25]} Ra8 {[%emt 0:02:18]} 30. Rc2 {[%emt 0:12:26]} h5 {[%emt 0:00:29]} 31. Bc5 {[%emt 0:05:15]} Ra6 {[%emt 0:02:44]} 32. Nb2 {[%emt 0:00:58]} Ba5+ {[%emt 0:01:02]} 33. b4 {[%emt 0:04:05]} Bc7 {[%emt 0:00:06]} 34. Nc4 {[%emt 0:00:52]} Ra8 {[%emt 0:04:01]} 35. Rd2 {[%emt 0:01:58]} Bxc4 {[%emt 0:01:01]} 36. Kxc4 {[%emt 0:00:09][%mdl 4096] Endgame KRB-KRB} Ke6 {[%emt 0:00:05] Prevents Rd7} 37. Kb3 {[%emt 0:06:43]} Ra1 {[%emt 0:02:00]} 38. Ra2 {[%emt 0:01:51]} Rxa2 {[%emt 0:01:46]} 39. Kxa2 {[%emt 0:00:06]} Bd8 {[%emt 0:01:06]} 40. Kb3 {[%emt 0:00:00]} Bc7 {[%emt 0:00:00]} 41. Kc4 {[%emt 0:03:51]} Bd8 {[%emt 0:00:26]} 42. Be3 {[%emt 0:02:35] Weighted Error Value: White=0.12 (very precise) /Black=0.09 (flawless)} 1/2-1/2